Workbook

Sheet Apero
C2: APERO / MÁQUINA:
D4: max | E4: =+P110 -> 240 | J4: =+AC110 -> Suelo | K4: =+AB110 -> Resist.esp. | P4: Anchura | R4: Profundidad | T4: Velocidad | W4: Amortización
C5: Anchura de trabajo: | D5: 259 | E5: =IF(D5<E6,E6,IF(D5<E4,D5,E4)) -> 240 | F5: cm | J5: =+IF(O110=28, "sin acond.", "baja") -> baja | K5: =+AD111 -> 40 | L5: FALSE | N5: Apero - máquina arrastrada | P5: Max | Q5: Min | R5: Max | S5: Min | T5: Min | U5: Max | V5: Coef. | W5: A1 | X5: A2 | Y5: Mant-rep. | Z5: Adqusición | AA5: Peso | AB5: Hipótesis / Leyenda
D6: min | E6: =+Q110 -> 40 | J6: =+IF(O110=28, "con acond.", "media") -> media | K6: =+AE111 -> 60 | L6: TRUE | P6: cm | Q6: cm | R6: cm | S6: cm | T6: km/h | U6: km/h | W6: horas | X6: años | Y6: (€/ha) | Z6: (€/m-€/t) | AA6: (kg/m)
J7: =+IF(O111=28, "", "alta") -> alta | K7: =+AF111 -> 80 | L7: FALSE | N7: Arado vertedera/disco | O7: 1 | P7: 240 | Q7: 40 | R7: 32 | S7: 18 | T7: 3 | U7: 8 | V7: 1 | W7: 3000 | X7: 20 | Y7: 6 | Z7: 8000 | AA7: 1000 | AB7: Resist.esp. | AC7: Suelo | AD7: 40 | AE7: 60 | AF7: 80
D8: max | E8: =+R110 -> 32 | N8: Chisel | O8: 2 | P8: 600 | Q8: 300 | R8: 25 | S8: 18 | T8: 5 | U8: 11 | V8: 0.5 | W8: 3000 | X8: 20 | Y8: 1.1 | Z8: 2500 | AA8: 250 | AB8: Resist.esp. | AC8: Suelo | AD8: 40 | AE8: 60 | AF8: 80
C9: Profundidad / factor corrector | D9: 2 | E9: =IF(D9<E10,E10,IF(D9>E8,E8,D9)) -> 18 | F9: cm/ud. | J9: Eficiencia | K9: 149 | N9: Subsolador | O9: 3 | P9: 400 | Q9: 100 | R9: 65 | S9: 30 | T9: 3 | U9: 8 | V9: 0.5 | W9: 3000 | X9: 20 | Y9: 2.1 | Z9: 2500 | AA9: 1000 | AB9: Resist.esp. | AC9: Suelo | AD9: 40 | AE9: 60 | AF9: 80
D10: min | E10: =+S110 -> 18 | J10: Baja | K10: 0.65 | L10: FALSE | N10: Rotocultivador | O10: 4 | P10: 350 | Q10: 150 | R10: 30 | S10: 20 | T10: 3 | U10: 6 | V10: 1 | W10: 1500 | X10: 20 | Y10: 3.9 | Z10: 2500 | AA10: 250 | AB10: Resist.esp. | AC10: Suelo | AD10: 40 | AE10: 60 | AF10: 80
J11: Media | K11: 0.75 | L11: FALSE | N11: Grada de discos | O11: 5 | P11: 800 | Q11: 200 | R11: 20 | S11: 10 | T11: 5 | U11: 12 | V11: 0.5 | W11: 3000 | X11: 20 | Y11: 0.75 | Z11: 2600 | AA11: 400 | AB11: Resist.esp. | AC11: Suelo | AD11: 40 | AE11: 60 | AF11: 80
B12: Profundidad / corrección | E12: =+E9 -> 18 | F12: cm | J12: Alta | K12: 0.85 | L12: TRUE | N12: Cultivador | O12: 6 | P12: 800 | Q12: 250 | R12: 20 | S12: 5 | T12: 5 | U12: 12 | V12: 0.2 | W12: 3000 | X12: 20 | Y12: 0.9 | Z12: 2200 | AA12: 200 | AB12: Resist.esp. | AC12: Suelo | AD12: 40 | AE12: 60 | AF12: 80
B13: Anchura trabajo | E13: =+E5/100 -> 2.4 | F13: m | N13: Grada accionada | O13: 7 | P13: 700 | Q13: 300 | R13: 15 | S13: 10 | T13: 4 | U13: 8 | V13: 0.7 | W13: 3000 | X13: 20 | Y13: 1.65 | Z13: 2500 | AA13: 250 | AB13: Resist.esp. | AC13: Suelo | AD13: 40 | AE13: 60 | AF13: 80
B14: Peso máquina (carga equiv.) | E14: =IF(O111>=17,E16*1.2,G14*E13) -> 2400 | F14: kg/ud. | G14: =+AA110 -> 1000 | H14: kg/m | N14: Vibrocultivador | O14: 8 | P14: 1000 | Q14: 300 | R14: 10 | S14: 4 | T14: 4 | U14: 10 | V14: 0.2 | W14: 3000 | X14: 20 | Y14: 0.9 | Z14: 2700 | AA14: 200 | AB14: Resist.esp. | AC14: Suelo | AD14: 40 | AE14: 60 | AF14: 80
J15: Nivel de carga (%) | N15: Rodillo | O15: 9 | P15: 1000 | Q15: 300 | R15: 10 | S15: 2 | T15: 4 | U15: 12 | V15: 0.5 | W15: 3000 | X15: 20 | Y15: 0.3 | Z15: 600 | AA15: 300 | AB15: Resist.esp. | AC15: Suelo | AD15: 40 | AE15: 60 | AF15: 80
B16: Resistencia suelo /eqiv. | E16: =IF(L5=TRUE,K5,IF(L6=TRUE,K6,IF(L7=TRUE,K7))) -> 60 | F16: kPa/ud. | J16: Bajo | K16: 25 | L16: FALSE | O16: 10
B17: Coeficiente corrector | E17: =+V110 -> 1 | J17: Medio | K17: 50 | L17: FALSE | N17: Sembradora chorrillo | O17: 11 | P17: 800 | Q17: 250 | R17: 10 | S17: 5 | T17: 5 | U17: 12 | V17: 0.5 | W17: 1200 | X17: 20 | Y17: 0.45 | Z17: 3500 | AA17: 500 | AB17: Resist.esp. | AC17: Suelo | AD17: 40 | AE17: 60 | AF17: 80
B18: Fuerza /equivalente | D18: =+T110*10 -> 30 | E18: =+IF(O110>=17,E16*4*E17*0.1*10*E9/10,E16*E12*E17*0.1*E13*10) -> 2592 | F18: daN/ud. | J18: Alto | K18: 75 | L18: TRUE | N18: Sembradora chorrillo - SD | O18: 12 | P18: 800 | Q18: 300 | R18: 15 | S18: 10 | T18: 5 | U18: 12 | V18: 0.8 | W18: 1200 | X18: 20 | Y18: 2.7 | Z18: 10000 | AA18: 1000 | AB18: Resist.esp. | AC18: Suelo | AD18: 40 | AE18: 60 | AF18: 80
B19: Velocidad de trabajo | D19: 90 | E19: =IF(D19<D18,D18/10,IF(D19>D20,D20/10,D19/10)) -> 8 | F19: km/h | N19: Sembradora monograno | O19: 13 | P19: 600 | Q19: 300 | R19: 10 | S19: 5 | T19: 3 | U19: 10 | V19: 0.5 | W19: 1200 | X19: 20 | Y19: 0.75 | Z19: 6500 | AA19: 400 | AB19: Resist.esp. | AC19: Suelo | AD19: 40 | AE19: 60 | AF19: 80
B20: Potencia de tracción | D20: =+U110*10 -> 80 | E20: =+IF(O110>27,E16*E19*E5*0.001*E9/6,E18*10*E19/3600) -> 57.6 | F20: kW | N20: Sembradora hortícolas | O20: 14 | P20: 300 | Q20: 100 | R20: 10 | S20: 5 | T20: 2 | U20: 6 | V20: 0.5 | W20: 1200 | X20: 20 | Y20: 0.75 | Z20: 6500 | AA20: 250 | AB20: Resist.esp. | AC20: Suelo | AD20: 40 | AE20: 60 | AF20: 80
D21: s / n | E21: =E20*1.36 -> 78.336 | F21: CV | H21: TRUE | I21: =IF(L16=TRUE,K16,IF(L17=TRUE,K17,IF(L18=TRUE,K18))) -> 75 | J21: Nivel carga elegido (%) | N21: Plantadora patatas | O21: 15 | P21: 400 | Q21: 150 | R21: 15 | S21: 10 | T21: 2 | U21: 8 | V21: 0.5 | W21: 1200 | X21: 20 | Y21: 3.5 | Z21: 5500 | AA21: 500 | AB21: Resist.esp. | AC21: Suelo | AD21: 40 | AE21: 60 | AF21: 80
B22: Pendientes fuertes (s/n) | E22: =IF(H21=TRUE,E21*0.2,0) -> 15.6672 | F22: CV | G22: (D 20%) | H22: FALSE | O22: 16
B23: Pot a la barra i/rod+desliz | E23: =(E21+E22)/0.75 -> 125.3376 | F23: CV | I23: CV | J23: =+G91 -> x | N23: Abonadora suspendida | O23: 17 | P23: 2000 | Q23: 1000 | R23: 15 | S23: 10 | T23: 5 | U23: 15 | V23: 0.15 | W23: 800 | X23: 20 | Y23: 0.3 | Z23: 7000 | AB23: Tamaño (L) | AD23: 800 | AE23: 1000 | AF23: 1200
I24: =E23*100/I21 -> 167.1168 | J24: Potencia tractor necesaria | K24: TRUE | N24: Abonadora arrastrada | O24: 18 | P24: 3000 | Q24: 2000 | R24: 15 | S24: 10 | T24: 5 | U24: 15 | V24: 0.15 | W24: 800 | X24: 20 | Y24: 0.3 | Z24: 8000 | AB24: Tamaño (L) | AD24: 1500 | AE24: 2500 | AF24: 3000
B25: Capacidad trabajo teórica | E25: =10/(E19*E13) -> 0.5208333333 | F25: h/ha | I25: =IF(K25,I26,I24) -> 167.1168 | J25: =+J91 -> 0 | K25: FALSE | N25: Remolque estiércol | O25: 19 | P25: 700 | Q25: 300 | R25: 20 | S25: 10 | T25: 2 | U25: 8 | V25: 0.05 | W25: 6000 | X25: 20 | Y25: 1.2 | Z25: 2500 | AB25: Tamaño (kg) | AD25: 7000 | AE25: 12000 | AF25: 20000
B26: Eficiencia | E26: =IF(L10=TRUE,K10,IF(L11=TRUE,K11,IF(L12=TRUE,K12))) -> 0.85 | I26: 225 | J26: Potencia tractor escogido | N26: Cisterna purín | O26: 20 | P26: 1200 | Q26: 500 | R26: 20 | S26: 10 | T26: 2 | U26: 8 | V26: 0.05 | W26: 2500 | X26: 20 | Y26: 0.9 | Z26: 2000 | AB26: Tamaño (L) | AD26: 7000 | AE26: 12000 | AF26: 20000
B27: Capacidad trabajo real | E27: =E25/E26 -> 0.612745098 | F27: h/ha | O27: 21
E28: =1/E27 -> 1.632 | F28: ha/h | N28: Pulverizador suspendido | O28: 22 | P28: 2000 | Q28: 1000 | R28: 20 | S28: 10 | T28: 4 | U28: 15 | V28: 0.2 | W28: 1000 | X28: 20 | Y28: 0.6 | Z28: 7000 | AB28: Tamaño (L) | AD28: 500 | AE28: 1000 | AF28: 1200
N29: Pulverizador arrastrado | O29: 23 | P29: 3000 | Q29: 2000 | R29: 20 | S29: 10 | T29: 5 | U29: 16 | V29: 0.2 | W29: 1000 | X29: 20 | Y29: 0.75 | Z29: 9000 | AB29: Tamaño (L) | AD29: 1500 | AE29: 2000 | AF29: 2500
B30: COSTES DE UTILIZACIÓN | J30: 100 | N30: Atomizador suspendido | O30: 24 | P30: 600 | Q30: 300 | R30: 20 | S30: 10 | T30: 2 | U30: 7 | V30: 0.4 | W30: 1000 | X30: 20 | Y30: 0.9 | Z30: 6000 | AB30: Tamaño (L) | AD30: 400 | AE30: 600 | AF30: 1000
E31: L/h | F31: L/ha | G31: €/h | H31: €/ha | J31: Coste Gasóleo | N31: Atomizador arrastrado | O31: 25 | P31: 1000 | Q31: 300 | R31: 20 | S31: 10 | T31: 2 | U31: 7 | V31: 0.3 | W31: 1000 | X31: 20 | Y31: 0.9 | Z31: 7000 | AB31: Tamaño (L) | AD31: 1200 | AE31: 2000 | AF31: 3000
D32: Combustible | E32: =+E54 -> 25.43616 | F32: =E32*E27 -> 15.58588235 | G32: =J32*E32 -> 25.43616 | H32: =F32*J32 -> 15.58588235 | J32: =+J30/100 -> 1 | K32: €/L | O32: 26
N33: Remoque autocargador | O33: 27 | P33: 500 | Q33: 150 | R33: 8 | S33: 4 | T33: 2 | U33: 10 | V33: 0.05 | W33: 2000 | X33: 20 | Y33: 10 | Z33: 3500 | AB33: Tamaño (L) | AD33: 25000 | AE33: 35000 | AF33: 50000
B34: Coste apero/máquina | N34: Segadora-acondicionadora | O34: 28 | P34: 600 | Q34: 300 | R34: 20 | S34: 10 | T34: 4 | U34: 12 | W34: 1000 | X34: 20 | Y34: 7 | Z34: 4500 | AA34: 1200 | AB34: kW/m | AC34: Potencia | AD34: 5 | AE34: 8
B35: Horas trabajo anuales | E35: =+I35*E27 -> 306.372549 | F35: h/año | H35: Superficie | I35: 500 | J35: ha/año | N35: Rastrilo hilerador-volteador | O35: 29 | P35: 800 | Q35: 300 | R35: 20 | S35: 10 | T35: 4 | U35: 15 | W35: 800 | X35: 20 | Y35: 1.1 | Z35: 1100 | AA35: 250 | AB35: kW/m | AC35: Potencia | AD35: 2 | AE35: 3
N36: Empacadora convencional | O36: 30 | P36: 600 | Q36: 200 | R36: 10 | S36: 5 | T36: 4 | U36: 8 | W36: 1000 | X36: 20 | Y36: 10 | Z36: 1700 | AB36: t/h | AC36: Capacidad | AD36: 8 | AE36: 10 | AF36: 12
D37: Precio de adqusición | E37: =IF(O111>29,H37*E14,IF(O111>27,+H37*E13,IF(O111>16,H37*E14/1000,+H37*E13))) -> 19200 | F37: € | H37: =+Z111 -> 8000 | I37: €/m-€/kL | J37: Apero | K37: Vida útil | N37: Rotoempacadora | O37: 31 | P37: 600 | Q37: 200 | R37: 11 | S37: 5 | T37: 4 | U37: 8 | W37: 2000 | X37: 20 | Y37: 8 | Z37: 2500 | AB37: t/h | AC37: Capacidad | AD37: 10 | AE37: 12 | AF37: 14
D38: recomendado | E38: propio | G38: TRUE | H38: FALSE | J38: =+E35 -> 306.372549 | K38: h/año | N38: Macroempacadora | O38: 32 | P38: 700 | Q38: 300 | R38: 12 | S38: 5 | T38: 4 | U38: 10 | W38: 3000 | X38: 20 | Y38: 6 | Z38: 3000 | AB38: t/h | AC38: Capacidad | AD38: 12 | AE38: 14 | AF38: 16
B39: amort. - desgaste | D39: =+W110 -> 3000 | E39: =IF($G$38,D39,F39) -> 3000 | G39: h | H39: =+$E$37/$E$39 -> 6.4 | I39: €/h | J39: horas | K39: =+$E$37/($H$39+$H$40) -> 2013.96348 | N39: Segadora-picadora | O39: 33 | P39: 300 | Q39: 150 | R39: 60 | S39: 30 | T39: 3 | U39: 6 | W39: 1600 | X39: 20 | Y39: 15 | Z39: 1750 | AB39: t/h | AC39: Capacidad | AD39: 8 | AE39: 10 | AF39: 12
C40: amort. - obsolescencia | D40: =+X110 -> 20 | E40: 20 | F40: 20 | G40: años | H40: =+$E$37/($E$40*$E$35) -> 3.13344 | I40: €/h | J40: años | K40: =+$E$37/($E$35*($H$39+$H$40)) -> 6.573576799 | O40: 34
B41: interés | D41: 5 | E41: 5 | G41: % | H41: =+$E$37*0.006*$E$41/$E$35 -> 1.880064 | I41: €/h | N41: Desbrozadora-picadora | O41: 35 | P41: 600 | Q41: 400 | R41: 20 | S41: 10 | T41: 3 | U41: 6 | W41: 1200 | X41: 20 | Y41: 2.5 | Z41: 1200 | AB41: t/h | AC41: Capacidad | AD41: 8 | AE41: 10 | AF41: 12
B42: seguros | D42: 0.2 | E42: 0.2 | F42: 0.2 | G42: % PA | H42: =+$E$37*$E$42/(100*$E$35) -> 0.1253376 | I42: €/h | J42: Tractor | K42: Vida útil | O42: 36
B43: resguardo | D43: 0.1 | E43: 0.1 | F43: 0.1 | G43: % PA | H43: =+$E$37*$E$43/($E$35*100) -> 0.0626688 | I43: €/h | J43: =+B62 -> 800 | K43: h/año | O43: 37
B44: mantenim-reparaciones | D44: =+Y110 -> 6 | E44: 6 | G44: €/ha | H44: =+$E$44/$E$27 -> 9.792 | I44: €/h | J44: horas | K44: =+$D$50/($D$63+$E$63) -> 6857.142857 | O44: 38
G45: Coste total | H45: =SUM(H39:H44) -> 21.3935104 | I45: €/h | J45: años | K45: =+$D$50/($J$43*($D$63+$E$63)) -> 8.571428571 | O45: 39
H46: =+$H$45*$E$27 -> 13.10876863 | I46: €/ha | O46: 40
O47: 41
B48: Coste tractor auxiliar | E48: Adqusición | F48: 560 | G48: €/kW | O48: 42
J49: Amortizac. | O49: 43
C50: PA | D50: =+G50*F48 -> 68812.8 | E50: € | F50: Potencia | G50: =+G51/1.36 -> 122.88 | H50: kW | J50: 12000 | K50: horas | O50: 44
C51: tasa interés | D51: =+E41 -> 5 | E51: % | G51: =+I25 -> 167.1168 | H51: CV | J51: 20 | K51: años | O51: 45
C52: gasóleo | D52: =+J32 -> 1 | E52: €/L | I52: Seguros | J52: 0.2 | K52: % | O52: 46
I53: Resguardo | J53: 0.1 | K53: % | O53: 47
C54: Consumo de combustible | E54: =+H63/$J$32 -> 25.43616 | F54: L/h | I54: Factor M-R | J54: 0.2 | K54: €/L | O54: 48
O55: 49
D56: baja | F56: media | G56: alta | J56: Factor carga | O56: 50
C57: carga | D57: 25 | E57: 40 | F57: 50 | G57: 75 | H57: 85 | I57: %
C58: factor | D58: 0.1 | E58: 0.129 | F58: 0.15 | G58: 0.207 | H58: 0.236 | I58: L/h-kW | J58: =IF(G59<30,D58,IF(G59<45,E58,IF(G59<55,F58,IF(G59<80,G58,IF(G59<110,H58))))) -> 0.207
C59: Carga recomendada | D59: =+I21 -> 75 | E59: % | F59: Real | G59: =+E23*100/I25 -> 75 | H59: %
C61: Tractor (horas/año) | D61: Costes horarios (€/h) | J61: [€/h] | K61: [€/h]
B62: 800 | D62: A1 | E62: A2 | F62: I | G62: S+R | H62: Comb. | I62: M-R | J62: Total | K62: s/comb.
C63: =+IF(B62>E35,B62,E35) -> 800 | D63: =+$D$50/$J$50 -> 5.7344 | E63: =+$D$50/(J51*B62) -> 4.3008 | F63: =+$D$50*D51*0.6/(B62*100) -> 2.58048 | G63: =+$D$50*(J52+J53)/(100*B62) -> 0.258048 | H63: =+$G$50*$J$58*$J$32 -> 25.43616 | I63: =+$J$54*$J$58*G50 -> 5.087232 | J63: =SUM(D63:I63) -> 43.39712 | K63: =+J63-H63 -> 17.96096
B65: Coste apero + tractor | D65: Apero | F65: Tractor | H65: Conjunto | J65: Conjunto+MO
C66: =+Grada_de_discos -> Arado vertedera/disco | D66: =+H45 -> 21.3935104 | E66: €/h | F66: =+J63 -> 43.39712 | G66: €/h | H66: =+D66+F66 -> 64.7906304 | I66: €/h | J66: =+H66+K70 -> 74.7906304 | K66: €/h
B67: =+I35 -> 500 | C67: ha/año - apero | D67: =+H46 -> 13.10876863 | E67: €/ha | F67: =+F66*E27 -> 26.59137255 | G67: €/ha | H67: =+D67+F67 -> 39.70014118 | I67: €/ha | J67: =+J66*E27 -> 45.82759216 | K67: €/ha
D68: =+E35 -> 306.372549 | E68: h/año
B69: =+C63 -> 800 | C69: h/año - tractor | D69: Tractor | E69: =+G51 -> 167.1168 | F69: CV | H69: Utilización tractor | I69: =+B62 -> 800 | J69: h/año | K69: Mano de obra (€/h) | L69: 100
D70: Apero | E70: =+E13 -> 2.4 | F70: m | H70: Utilización apero | I70: =+I35 -> 500 | J70: ha/año | K70: =+L69/10 -> 10
B71: =+J32 -> 1 | C71: gasóleo (€/L)
D72: h/año | E72: €/h | F72: ha/año | G72: apero | H72: T+ap | I72: total+MO
C73: anchura (m) | D73: 10 | E73: =+($E$37/$E$39)+($E$37/($E$40*D73))+($E$37*0.006*$E$41/D73)+($E$37*($E$42+$E$43)/(100*D73))+($E$44/$E$27) -> 175.552 | F73: =+D73*$E$28 -> 16.32 | G73: =+E73*$E$27 -> 107.5686275 | H73: =+G73+$F$67 -> 134.16 | I73: =+H73+$K$70*$E$27 -> 140.287451
C74: =+E13 -> 2.4 | D74: 25 | E74: =+($E$37/$E$39)+($E$37/($E$40*D74))+($E$37*0.006*$E$41/D74)+($E$37*($E$42+$E$43)/(100*D74))+($E$44/$E$27) -> 79.936 | F74: =+D74*$E$28 -> 40.8 | G74: =+E74*$E$27 -> 48.98039216 | H74: =+G74+$F$67 -> 75.57176471 | I74: =+H74+$K$70*$E$27 -> 81.69921569
B75: velocidad | D75: 50 | E75: 48.064 | F75: 81.6 | G75: 29.45098039 | H75: 56.04235294 | I75: 62.16980392
B76: =+E19 -> 8 | C76: km/h | D76: 75 | E76: 37.44 | F76: 122.4 | G76: 22.94117647 | H76: 49.53254902 | I76: 55.66
D77: 100 | E77: 32.128 | F77: 163.2 | G77: 19.68627451 | H77: 46.27764706 | I77: 52.40509804
D78: 150 | E78: 26.816 | F78: 244.8 | G78: 16.43137255 | H78: 43.0227451 | I78: 49.15019608
D79: 200 | E79: 24.16 | F79: 326.4 | G79: 14.80392157 | H79: 41.39529412 | I79: 47.5227451
D80: 250 | E80: 22.5664 | F80: 408 | G80: 13.82745098 | H80: 40.41882353 | I80: 46.54627451
D81: 300 | E81: 21.504 | F81: 489.6 | G81: 13.17647059 | H81: 39.76784314 | I81: 45.89529412
D82: 350 | E82: 20.74514286 | F82: 571.2 | G82: 12.71148459 | H82: 39.30285714 | I82: 45.43030812
D83: 400 | E83: 20.176 | F83: 652.8 | G83: 12.3627451 | H83: 38.95411765 | I83: 45.08156863
D84: 450 | E84: 19.73333333 | F84: 734.4 | G84: 12.09150327 | H84: 38.68287582 | I84: 44.8103268
D85: 500 | E85: 19.3792 | F85: 816 | G85: 11.8745098 | H85: 38.46588235 | I85: 44.59333333
D86: =IF(D68<500,600,D68) -> 600 | E86: =+($E$37/$E$39)+($E$37/($E$40*D86))+($E$37*0.006*$E$41/D86)+($E$37*($E$42+$E$43)/(100*D86))+($E$44/$E$27) -> 18.848 | F86: =+D86*$E$28 -> 979.2 | G86: =+E86*$E$27 -> 11.54901961 | H86: =+G86+$F$67 -> 38.14039216 | I86: 44.26784314
D87: =+D86+25 -> 625 | E87: =+($E$37/$E$39)+($E$37/($E$40*D87))+($E$37*0.006*$E$41/D87)+($E$37*($E$42+$E$43)/(100*D87))+($E$44/$E$27) -> 18.74176 | F87: =+D87*$E$28 -> 1020 | G87: =+E87*$E$27 -> 11.48392157 | H87: =+G87+$F$67 -> 38.07529412 | I87: 44.2027451
B88: profundidad | F88: =+I70 -> 500 | H88: 0
B89: =+E12 -> 18 | C89: cm | F89: =+I70 -> 500 | G89: =+D67 -> 13.10876863 | H89: =+H67 -> 39.70014118 | I89: =+J67 -> 45.82759216
I90: 0
C91: Capacidad trabajo | E91: Carga real (%) | F91: =+G59 -> 75 | G91: =IF(K25,0,"x") -> x | J91: =IF(K25,"x",0) -> 0
C92: real (h/ha) | F92: Tractor necesario | G92: =+I24 -> 167.1168 | I92: Tractor elegido | J92: =+IF(G59<100,E69) -> 167.1168 | K92: CV
C93: =+E27 -> 0.612745098
O109: 1 | P109: 2 | Q109: 3 | R109: 4 | S109: 5 | T109: 6 | U109: 7 | V109: 8 | W109: 9 | X109: 10 | Y109: 11 | Z109: 12 | AA109: 13 | AB109: 14 | AC109: 15 | AD109: 16 | AE109: 17 | AF109: 18 | AG109: 19 | AH109: 20
N110: Arado vertedera/disco | O110: =+O111 -> 1 | P110: =+P111 -> 240 | Q110: =+Q111 -> 40 | R110: =+R111 -> 32 | S110: =+S111 -> 18 | T110: =+T111 -> 3 | U110: 8 | V110: 1 | W110: 3000 | X110: 20 | Y110: 6 | Z110: 8000 | AA110: 1000 | AB110: Resist.esp. | AC110: Suelo | AD110: 40 | AE110: 60 | AF110: 80
N111: =VLOOKUP($N$110,N7:AB56,1,FALSE) -> Arado vertedera/disco | O111: =VLOOKUP($N$110,$N7:$AC56,2,FALSE) -> 1 | P111: =VLOOKUP($O$111,O7:AF56,2) -> 240 | Q111: =VLOOKUP($O$111,$O7:$AF56,3) -> 40 | R111: =VLOOKUP($O$111,$O7:$AF56,4) -> 32 | S111: =VLOOKUP($O$111,$O7:$AF56,5) -> 18 | T111: =VLOOKUP($O$111,$O7:$AF56,6) -> 3 | U111: =VLOOKUP($O$111,$O7:$AF56,7) -> 8 | V111: =VLOOKUP($O$111,$O7:$AF56,8) -> 1 | W111: =VLOOKUP($O$111,$O7:$AF56,9) -> 3000 | X111: =VLOOKUP($O$111,$O7:$AF56,10) -> 20 | Y111: =VLOOKUP($O$111,$O7:$AF56,11) -> 6 | Z111: =VLOOKUP($O$111,$O7:$AF56,12) -> 8000 | AA111: =VLOOKUP($O$111,$O7:$AF56,13) -> 1000 | AB111: =VLOOKUP($O$111,$O7:$AF56,14) -> Resist.esp. | AC111: =VLOOKUP($O$111,$O7:$AF56,15) -> Suelo | AD111: =VLOOKUP($O$111,$O7:$AF56,16) -> 40 | AE111: =VLOOKUP($O$111,$O7:$AF56,17) -> 60 | AF111: =VLOOKUP($O$111,$O7:$AF56,18) -> 80

Sheet Tractor
A2: PA | B2: =+E2*E5 -> 20000 | C2: € | D2: Potencia | E2: =+J3 -> 50 | F2: kW | G2: Amortizac. | H2: 12000 | I2: horas | J2: Potencia
A3: tasa interés | B3: 7 | C3: % | E3: =+E2*1.36 -> 68 | F3: CV | H3: 20 | I3: años | J3: 50 | K3: kW
A4: gasóleo | B4: 1 | C4: €/L
E5: 400 | F5: €/kW | G5: Seguros | H5: 0.2 | I5: %
B6: Consumo de combustible | G6: Resguardo | H6: 0.1 | I6: %
B7: baja | C7: media | D7: alta | F7: Factor carga
A8: carga | B8: 25 | C8: 50 | D8: 75 | E8: % | F8: =+K10/1000 -> 0.15 | I8: Mantenim- reparaciones | J8: 0.2 | K8: €/L
A9: factor | B9: 0.1 | C9: 0.15 | D9: 0.207 | E9: L/h-kW | I9: Consumo (carga media) | J9: =+F13/$B$4 -> 7.5 | K9: L/h
K10: 150
B11: Costes horarios (€/h) | I11: [€/h] | J11: [€/h]
A12: Horas año | B12: A1 | C12: A2 | D12: I | E12: S+R | F12: Comb. | G12: Mant-repar | I12: Total | J12: s/comb.
A13: 100 | B13: =+$B$2/$H$2 -> 1.666666667 | C13: =+$B$2/($H$3*A13) -> 10 | D13: =+$B$2*$B$3*0.6/(A13*100) -> 8.4 | E13: =+$B$2*($H$5+$H$6)/(A13*100) -> 0.6 | F13: =+$E$2*$F$8*$B$4 -> 7.5 | G13: =+$E$2*$C$9*$J$8 -> 1.5 | I13: =SUM(B13:G13) -> 29.66666667 | J13: =+I13-F13 -> 22.16666667
A14: =+A13+100 -> 200 | B14: 1.666666667 | C14: 5 | D14: =+$B$2*$B$3*0.6/(A14*100) -> 4.2 | E14: 0.3 | F14: =+$E$2*$F$8*$B$4 -> 7.5 | G14: 1.5 | I14: 20.16666667 | J14: 12.66666667
A15: 300 | B15: 1.666666667 | C15: 3.333333333 | D15: 2.8 | E15: 0.2 | F15: 7.5 | G15: 1.5 | I15: 17 | J15: 9.5
A16: 400 | B16: 1.666666667 | C16: 2.5 | D16: 2.1 | E16: 0.15 | F16: 7.5 | G16: 1.5 | I16: 15.41666667 | J16: 7.916666667
A17: 500 | B17: 1.666666667 | C17: 2 | D17: 1.68 | E17: 0.12 | F17: 7.5 | G17: 1.5 | I17: 14.46666667 | J17: 6.966666667
A18: 600 | B18: 1.666666667 | C18: 1.666666667 | D18: 1.4 | E18: 0.1 | F18: 7.5 | G18: 1.5 | I18: 13.83333333 | J18: 6.333333333
A19: 700 | B19: 1.666666667 | C19: 1.428571429 | D19: 1.2 | E19: 0.08571428571 | F19: 7.5 | G19: 1.5 | I19: 13.38095238 | J19: 5.880952381
A20: 800 | B20: 1.666666667 | C20: 1.25 | D20: 1.05 | E20: 0.075 | F20: 7.5 | G20: 1.5 | I20: 13.04166667 | J20: 5.541666667
A21: 900 | B21: 1.666666667 | C21: 1.111111111 | D21: 0.9333333333 | E21: 0.06666666667 | F21: 7.5 | G21: 1.5 | I21: 12.77777778 | J21: 5.277777778
A22: 1000 | B22: 1.666666667 | C22: 1 | D22: 0.84 | E22: 0.06 | F22: 7.5 | G22: 1.5 | I22: 12.56666667 | J22: 5.066666667
A23: 1100 | B23: 1.666666667 | C23: 0.9090909091 | D23: 0.7636363636 | E23: 0.05454545455 | F23: 7.5 | G23: 1.5 | I23: 12.39393939 | J23: 4.893939394
A24: 1200 | B24: 1.666666667 | C24: 0.8333333333 | D24: 0.7 | E24: 0.05 | F24: 7.5 | G24: 1.5 | I24: 12.25 | J24: 4.75
A25: 1300 | B25: 1.666666667 | C25: 0.7692307692 | D25: 0.6461538462 | E25: 0.04615384615 | F25: 7.5 | G25: 1.5 | I25: 12.12820513 | J25: 4.628205128
A26: 1400 | B26: 1.666666667 | C26: 0.7142857143 | D26: 0.6 | E26: 0.04285714286 | F26: 7.5 | G26: 1.5 | I26: 12.02380952 | J26: 4.523809524
A27: 1500 | B27: 1.666666667 | C27: 0.6666666667 | D27: 0.56 | E27: 0.04 | F27: 7.5 | G27: 1.5 | I27: 11.93333333 | J27: 4.433333333
A28: 1600 | B28: 1.666666667 | C28: 0.625 | D28: 0.525 | E28: 0.0375 | F28: 7.5 | G28: 1.5 | I28: 11.85416667 | J28: 4.354166667
A29: 1700 | B29: 1.666666667 | C29: 0.5882352941 | D29: 0.4941176471 | E29: 0.03529411765 | F29: 7.5 | G29: 1.5 | I29: 11.78431373 | J29: 4.284313725
A30: 1800 | B30: 1.666666667 | C30: 0.5555555556 | D30: 0.4666666667 | E30: 0.03333333333 | F30: 7.5 | G30: 1.5 | I30: 11.72222222 | J30: 4.222222222
A31: 1900 | B31: 1.666666667 | C31: 0.5263157895 | D31: 0.4421052632 | E31: 0.03157894737 | F31: 7.5 | G31: 1.5 | I31: 11.66666667 | J31: 4.166666667
A32: 2000 | B32: 1.666666667 | C32: 0.5 | D32: 0.42 | E32: 0.03 | F32: 7.5 | G32: 1.5 | I32: 11.61666667 | J32: 4.116666667
B35: Costes anuales (€/año) | I35: €/año | J35: €/año
A36: Horas año | B36: A1 | C36: A2 | D36: I | E36: S+R | F36: Comb. | G36: Mant-repar | I36: Total | J36: s/comb | K36: [L/año]
A37: =+A13 -> 100 | B37: =+B13*A37 -> 166.6666667 | C37: =+C13*A37 -> 1000 | D37: =+D13*A37 -> 840 | E37: =+E13*A37 -> 60 | F37: =+F13*A37 -> 750 | G37: =+G13*A37 -> 150 | I37: =SUM(B37:G37) -> 2966.666667 | J37: =+I37-F37 -> 2216.666667 | K37: =+F37/$B$4 -> 750
A38: 200 | B38: 333.3333333 | C38: 1000 | D38: 840 | E38: 60 | F38: 1500 | G38: 300 | I38: 4033.333333 | J38: 2533.333333 | K38: 1500
A39: 300 | B39: 500 | C39: 1000 | D39: 840 | E39: 60 | F39: 2250 | G39: 450 | I39: 5100 | J39: 2850 | K39: 2250
A40: 400 | B40: 666.6666667 | C40: 1000 | D40: 840 | E40: 60 | F40: 3000 | G40: 600 | I40: 6166.666667 | J40: 3166.666667 | K40: 3000
A41: 500 | B41: 833.3333333 | C41: 1000 | D41: 840 | E41: 60 | F41: 3750 | G41: 750 | I41: 7233.333333 | J41: 3483.333333 | K41: 3750
A42: 600 | B42: 1000 | C42: 1000 | D42: 840 | E42: 60 | F42: 4500 | G42: 900 | I42: 8300 | J42: 3800 | K42: 4500
A43: 700 | B43: 1166.666667 | C43: 1000 | D43: 840 | E43: 60 | F43: 5250 | G43: 1050 | I43: 9366.666667 | J43: 4116.666667 | K43: 5250
A44: 800 | B44: 1333.333333 | C44: 1000 | D44: 840 | E44: 60 | F44: 6000 | G44: 1200 | I44: 10433.33333 | J44: 4433.333333 | K44: 6000
A45: 900 | B45: 1500 | C45: 1000 | D45: 840 | E45: 60 | F45: 6750 | G45: 1350 | I45: 11500 | J45: 4750 | K45: 6750
A46: 1000 | B46: 1666.666667 | C46: 1000 | D46: 840 | E46: 60 | F46: 7500 | G46: 1500 | I46: 12566.66667 | J46: 5066.666667 | K46: 7500
A47: 1100 | B47: 1833.333333 | C47: 1000 | D47: 840 | E47: 60 | F47: 8250 | G47: 1650 | I47: 13633.33333 | J47: 5383.333333 | K47: 8250
A48: 1200 | B48: 2000 | C48: 1000 | D48: 840 | E48: 60 | F48: 9000 | G48: 1800 | I48: 14700 | J48: 5700 | K48: 9000
A49: 1300 | B49: 2166.666667 | C49: 1000 | D49: 840 | E49: 60 | F49: 9750 | G49: 1950 | I49: 15766.66667 | J49: 6016.666667 | K49: 9750
A50: 1400 | B50: 2333.333333 | C50: 1000 | D50: 840 | E50: 60 | F50: 10500 | G50: 2100 | I50: 16833.33333 | J50: 6333.333333 | K50: 10500
A51: 1500 | B51: 2500 | C51: 1000 | D51: 840 | E51: 60 | F51: 11250 | G51: 2250 | I51: 17900 | J51: 6650 | K51: 11250
A52: 1600 | B52: 2666.666667 | C52: 1000 | D52: 840 | E52: 60 | F52: 12000 | G52: 2400 | I52: 18966.66667 | J52: 6966.666667 | K52: 12000
A53: 1700 | B53: 2833.333333 | C53: 1000 | D53: 840 | E53: 60 | F53: 12750 | G53: 2550 | I53: 20033.33333 | J53: 7283.333333 | K53: 12750
A54: 1800 | B54: 3000 | C54: 1000 | D54: 840 | E54: 60 | F54: 13500 | G54: 2700 | I54: 21100 | J54: 7600 | K54: 13500
A55: 1900 | B55: 3166.666667 | C55: 1000 | D55: 840 | E55: 60 | F55: 14250 | G55: 2850 | I55: 22166.66667 | J55: 7916.666667 | K55: 14250
A56: 2000 | B56: 3333.333333 | C56: 1000 | D56: 840 | E56: 60 | F56: 15000 | G56: 3000 | I56: 23233.33333 | J56: 8233.333333 | K56: 15000
